{"text_format":"1","workbook":"xlsx","n_sheets":2,"sheets":["Данные","План"],"not_rendered":{"charts":0,"images":0,"macros":1,"external_links":1,"defined_names":6,"comments":0,"pivot_tables":0},"unopened":[],"bounds":{"document_bytes":16777216,"sheet_cells":100000,"rows_first":2000,"rows_last":500,"rows_between":2000,"halvings":0,"cell_chars":16384,"cell_head_chars":4096},"cells_cut":0,"cells_raw":0,"read":"whole","date_system":"1900"}

{"sheet":"Данные","index":0,"n_rows":8,"n_cols":10,"rows_kept":8,"cut":false,"hidden":false,"merged":[]}
["#","продажи за",{"$f":"План!C1","v":"2024-04-01"}]
["#",{"$f":"SUBTOTAL(9,B4:B993131)","v":48344}]
["Магазин","выручка","себестоимость","Дата","Спецзадача","дневной план",null,"LEMARC","ТОСОЛ-СИНТЕЗ","RELIT"]
["Магазин Автомолл",3754,3508,null,"LEMARC"]
["Магазин Артемовский",1247,936.9,null,"LEMARC"]
["Магазин Комсомольская",5074,3787.91,null,"LEMARC"]
["Магазин Красноуральск",6930,null,null,"LEMARC"]
["Магазин Походная",31339,26747.95,null,"LEMARC"]

{"sheet":"План","index":1,"n_rows":41,"n_cols":14,"rows_kept":41,"cut":false,"hidden":false,"merged":[]}
[null,"План РТС","2024-04-01",null,null,"дневной план","дневной план с недопродажами",8,{"$f":"DAY(EOMONTH($C$1, 0))","v":30},null,null,null,null,"список спецзадач"]
["LEMARC","ВСЕГО",{"$f":"SUM(C3:C14)","v":3500000},{"$f":"B2&A2","v":"ВСЕГОLEMARC"},{"$f":"(Данные!B2/План!H1*План!I1)/План!C2","v":5.1797142857142854E-2},{"$f":"C2/$I$1","v":116666.66666666667},116666.66666666667,{"$f":"ROW(Данные!$A$4:A99674)","v":4},{"$f":"Данные!A4&Данные!E4","v":"Магазин АвтомоллLEMARC"},null,null,null,null,"LEMARC"]
["LEMARC","Магазин Автомолл",20000,{"$f":"B3&A3","v":"Магазин АвтомоллLEMARC"},null,666.66666666666663,666.66666666666663,null,"(План!$D$2:$D$40=Данные!A5&Данные!E5)",null,null,null,null,"RELIT"]
["LEMARC","Магазин Артемовский",210000,"Магазин АртемовскийLEMARC",null,7000,7000,null,{"$f":"УНИКАЛЬНЫЕ(A2:A100&B2:B100)","v":{"$error":"#NAME?"}},null,null,null,null,"ТОСОЛ-СИНТЕЗ"]
["LEMARC","Магазин Комсомольская",350000,"Магазин КомсомольскаяLEMARC",null,11666.666666666666,11666.666666666666,null,{"$f":"INDEX(Данные!$A$4:A8&Данные!$E$4:E8, СОВПАДЕНИЕ(1, COUNTIF($H1:H100, Данные!$A$4:A8&Данные!$E$4:E8), 0))","v":{"$error":"#NAME?"}}]
["LEMARC","Магазин Красноуральск",230000,"Магазин КрасноуральскLEMARC",null,7666.666666666667,7666.666666666667]
["LEMARC","Магазин Походная",480000,"Магазин ПоходнаяLEMARC",null,16000,16000]
["LEMARC","Магазин Ревда",250000,"Магазин РевдаLEMARC",null,8333.3333333333339,8333.3333333333339]
["LEMARC","Магазин Селькоровская",265000,"Магазин СелькоровскаяLEMARC",null,8833.3333333333339,8833.3333333333339]
["LEMARC","Магазин Сибирский Тракт",265000,"Магазин Сибирский ТрактLEMARC",null,8833.3333333333339,8833.3333333333339]
["LEMARC","Магазин ТСК Березовский, 2",510000,"Магазин ТСК Березовский, 2LEMARC",null,17000,17000]
["LEMARC","Магазин ТСК Богданович",340000,"Магазин ТСК БогдановичLEMARC",null,11333.333333333334,11333.333333333334]
["LEMARC","Магазин ТСК Верхотурье",290000,"Магазин ТСК ВерхотурьеLEMARC",null,9666.6666666666661,9666.6666666666661]
["LEMARC","Магазин Уральская",290000,"Магазин УральскаяLEMARC",null,9666.6666666666661,9666.6666666666661]
["RELIT","ВСЕГО",{"$f":"SUM(C16:C27)","v":1150000},"ВСЕГОRELIT",{"$f":"(Данные!B2/План!H1*План!I1)/План!C15","v":0.15764347826086955},38333.333333333336,38333.333333333336]
["RELIT","Магазин Автомолл",15000,"Магазин АвтомоллRELIT",null,500,500]
["RELIT","Магазин Артемовский",65000,"Магазин АртемовскийRELIT",null,2166.6666666666665,2166.6666666666665]
["RELIT","Магазин Комсомольская",140000,"Магазин КомсомольскаяRELIT",null,4666.666666666667,4666.666666666667]
["RELIT","Магазин Красноуральск",60000,"Магазин КрасноуральскRELIT",null,2000,2000]
["RELIT","Магазин Походная",160000,"Магазин ПоходнаяRELIT",null,5333.333333333333,5333.333333333333]
["RELIT","Магазин Ревда",65000,"Магазин РевдаRELIT",null,2166.6666666666665,2166.6666666666665]
["RELIT","Магазин Селькоровская",100000,"Магазин СелькоровскаяRELIT",null,3333.3333333333335,3333.3333333333335]
["RELIT","Магазин Сибирский Тракт",100000,"Магазин Сибирский ТрактRELIT",null,3333.3333333333335,3333.3333333333335]
["RELIT","Магазин ТСК Березовский, 2",140000,"Магазин ТСК Березовский, 2RELIT",null,4666.666666666667,4666.666666666667]
["RELIT","Магазин ТСК Богданович",100000,"Магазин ТСК БогдановичRELIT",null,3333.3333333333335,3333.3333333333335]
["RELIT","Магазин ТСК Верхотурье",65000,"Магазин ТСК ВерхотурьеRELIT",null,2166.6666666666665,2166.6666666666665]
["RELIT","Магазин Уральская",140000,"Магазин УральскаяRELIT",null,4666.666666666667,4666.666666666667]
["ТОСОЛ-СИНТЕЗ","ВСЕГО",{"$f":"SUM(C29:C40)","v":4200000},"ВСЕГОТОСОЛ-СИНТЕЗ",{"$f":"(Данные!B2/План!H1*План!I1)/План!C28","v":4.3164285714285718E-2},140000,140000]
["ТОСОЛ-СИНТЕЗ","Магазин Автомолл",45000,"Магазин АвтомоллТОСОЛ-СИНТЕЗ",{"$f":"Данные!B2/8*30/C29","v":4.0286666666666671},1500,1500]
["ТОСОЛ-СИНТЕЗ","Магазин Артемовский",240000,"Магазин АртемовскийТОСОЛ-СИНТЕЗ",null,8000,8000]
["ТОСОЛ-СИНТЕЗ","Магазин Комсомольская",545000,"Магазин КомсомольскаяТОСОЛ-СИНТЕЗ",null,18166.666666666668,18166.666666666668]
["ТОСОЛ-СИНТЕЗ","Магазин Красноуральск",300000,"Магазин КрасноуральскТОСОЛ-СИНТЕЗ",null,10000,10000]
["ТОСОЛ-СИНТЕЗ","Магазин Походная",620000,"Магазин ПоходнаяТОСОЛ-СИНТЕЗ",null,20666.666666666668,20666.666666666668]
["ТОСОЛ-СИНТЕЗ","Магазин Ревда",260000,"Магазин РевдаТОСОЛ-СИНТЕЗ",null,8666.6666666666661,8666.6666666666661]
["ТОСОЛ-СИНТЕЗ","Магазин Селькоровская",370000,"Магазин СелькоровскаяТОСОЛ-СИНТЕЗ",null,12333.333333333334,12333.333333333334]
["ТОСОЛ-СИНТЕЗ","Магазин Сибирский Тракт",370000,"Магазин Сибирский ТрактТОСОЛ-СИНТЕЗ",null,12333.333333333334,12333.333333333334]
["ТОСОЛ-СИНТЕЗ","Магазин ТСК Березовский, 2",620000,"Магазин ТСК Березовский, 2ТОСОЛ-СИНТЕЗ",null,20666.666666666668,20666.666666666668]
["ТОСОЛ-СИНТЕЗ","Магазин ТСК Богданович",330000,"Магазин ТСК БогдановичТОСОЛ-СИНТЕЗ",null,11000,11000]
["ТОСОЛ-СИНТЕЗ","Магазин ТСК Верхотурье",250000,"Магазин ТСК ВерхотурьеТОСОЛ-СИНТЕЗ",null,8333.3333333333339,8333.3333333333339]
["ТОСОЛ-СИНТЕЗ","Магазин Уральская",250000,"Магазин УральскаяТОСОЛ-СИНТЕЗ",null,8333.3333333333339,8333.3333333333339]
[null,"Итого",{"$f":"+C28+C15+C2","v":8850000},"Итого",null,295000,295000]